fUST/lending_fUST_20241125
["ID","MTS","AMOUNT","RATE_DAILY","PERIOD"]
[343276029,1732537858620,-500.0,0.00028276,2]
[343276032,1732537858631,-265.88,0.00028276,2]
[343276034,1732537858641,-500.0,0.00028276,2]
[343276036,1732537858651,-262.86,0.00028276,2]
[343276038,1732537858661,-500.0,0.00028276,2]
[343276040,1732537858671,-500.0,0.00028276,2]
[343276042,1732537858680,-500.0,0.00028276,2]
[343276044,1732537858690,-500.0,0.00028276,2]
[343276046,1732537858699,-504.89894345,0.00028276,2]
[343276048,1732537858709,-504.24447548,0.00028276,2]
[343276049,1732537858718,-500.0,0.00028276,2]
[343276051,1732537858728,-500.0,0.00028276,2]
[343276053,1732537858737,-261.96880808,0.00028276,2]
[343276055,1732537858747,-503.2152359,0.00028276,2]
[343276058,1732537858756,-601.9390001,0.00028276,2]
[343276060,1732537858766,-500.0,0.00028276,2]
[343276062,1732537858775,-759.69,0.00028276,2]
[343276064,1732537858785,-500.0,0.00028276,2]
[343276065,1732537858794,-500.0,0.00028276,2]
[343276068,1732537858803,-500.0,0.00028276,2]
[343276069,1732537858812,-500.0,0.00028276,2]
[343276071,1732537858821,-500.0,0.00028276,2]
[343276073,1732537858830,-506.44,0.00028276,2]
[343276075,1732537858839,-505.39772698,0.00028276,2]
[343276077,1732537858849,-503.56529678,0.00028276,2]
[343276079,1732537858858,-3165.31,0.00028287,2]
[343276081,1732537858868,-769.4,0.00028287,2]
[343276083,1732537858879,-2256.66,0.00028287,2]
[343276085,1732537858889,-500.0,0.00028287,2]
[343276087,1732537858898,-500.0,0.00028287,2]
[343276089,1732537858907,-13350.69,0.0002829,2]
[343276091,1732537858917,-500.0,0.0002829,2]
[343276093,1732537858926,-549.13,0.0002829,2]
[343276095,1732537858935,-500.0,0.0002829,2]
[343276097,1732537858945,-601.52,0.0002829,2]
[343276099,1732537858954,-500.0,0.0002829,2]
[343276101,1732537858963,-500.0,0.0002829,2]
[343276103,1732537858972,-477.28,0.0002829,2]
[343276105,1732537858982,-500.0,0.0002829,2]
[343276107,1732537858991,-500.0,0.0002829,2]
[343276109,1732537859000,-500.0,0.0002829,2]
[343276111,1732537859009,-1119.37,0.0002829,2]
[343276113,1732537859019,-600.0,0.00028374,2]
[343276115,1732537859028,-833.1,0.000284,2]
[343276117,1732537859037,-500.0,0.0002841,2]
[343276119,1732537859047,-416.42,0.0002841,2]
[343276121,1732537859056,-500.0,0.0002841,2]
[343276123,1732537859066,-500.0,0.0002841,2]
[343276125,1732537859075,-500.0,0.0002841,2]
[343276128,1732537859084,-500.0,0.0002841,2]
[343276129,1732537859094,-500.0,0.0002841,2]
[343276132,1732537859103,-500.0,0.0002841,2]
[343276134,1732537859112,-500.0,0.0002841,2]
[343276136,1732537859122,-525.29,0.0002841,2]
[343276138,1732537859132,-500.0,0.0002841,2]
[343276140,1732537859142,-500.0,0.0002841,2]
[343276142,1732537859151,-500.0,0.0002841,2]
[343276143,1732537859161,-500.0,0.0002841,2]
[343276145,1732537859170,-500.0,0.0002841,2]
[343276148,1732537859180,-499.72,0.0002841,2]
[343276149,1732537859189,-500.0,0.0002841,2]
[343276152,1732537859199,-500.0,0.0002841,2]
[343276154,1732537859208,-500.0,0.0002841,2]
[343276156,1732537859217,-500.0,0.0002841,2]
[343276157,1732537859227,-584.54,0.0002841,2]
[343276160,1732537859236,-1265.07,0.0002841,2]
[343276162,1732537859246,-500.0,0.0002841,2]
[343276164,1732537859255,-500.0,0.0002841,2]
[343276165,1732537859265,-500.0,0.0002841,2]
[343276167,1732537859274,-500.0,0.0002841,2]
[343276169,1732537859283,-706.06,0.0002841,2]
[343276171,1732537859292,-500.0,0.0002841,2]
[343276173,1732537859301,-500.0,0.0002841,2]
[343276175,1732537859311,-500.0,0.0002841,2]
[343276176,1732537859320,-500.0,0.0002841,2]
[343276177,1732537859329,-500.0,0.0002841,2]
[343276178,1732537859338,-161.742858,0.00028419,2]
[343276179,1732537859347,-151.0,0.00028503,7]
[343276181,1732537859357,-1500.0,0.00028522,5]
[343276183,1732537859366,-500.0,0.00028549,2]
[343276185,1732537859377,-500.0,0.00028549,2]
[343276187,1732537859386,-500.0,0.00028549,2]
[343276189,1732537859395,-167.32,0.00028549,2]
[343276191,1732537859404,-500.0,0.00028549,2]
[343276193,1732537859414,-500.0,0.00028549,2]
[343276195,1732537859428,-500.07,0.00028549,2]
[343276197,1732537859438,-500.0,0.00028549,2]
[343276206,1732537859516,-500.0,0.00028549,2]
[343276208,1732537859525,-500.0,0.00028549,2]
[343276211,1732537859535,-500.0,0.00028549,2]
[343276213,1732537859545,-500.0,0.00028549,2]
[343276215,1732537859554,-500.0,0.00028549,2]
[343276217,1732537859563,-554.78,0.00028549,2]
[343276219,1732537859574,-500.0,0.00028549,2]
[343276221,1732537859583,-500.0,0.00028549,2]
[343276223,1732537859593,-500.0,0.00028549,2]
[343276225,1732537859603,-500.0,0.00028549,2]
[343276227,1732537859612,-560.59,0.00028549,2]
[343276229,1732537859622,-500.0,0.00028549,2]
[343276231,1732537859633,-787.36,0.00028549,2]
[343276233,1732537859642,-5700.56,0.00028549,2]
[343276235,1732537859652,-500.0,0.00028549,2]
[343276237,1732537859661,-500.0,0.00028549,2]
[343276239,1732537859671,-1431.61,0.00028549,2]
[343276241,1732537859680,-500.0,0.00028549,2]
[343276243,1732537859690,-500.0,0.00028549,2]
[343276245,1732537859699,-500.0,0.00028549,2]
[343276247,1732537859708,-500.0,0.00028549,2]
[343276249,1732537859718,-500.0,0.00028549,2]
[343276251,1732537859728,-500.0,0.00028549,2]
[343276253,1732537859737,-389.6951443,0.00028549,2]
[343276255,1732537859746,-500.0,0.00028549,2]
[343276257,1732537859756,-500.0,0.00028549,2]
[343276259,1732537859766,-500.0,0.00028549,2]
[343276261,1732537859775,-517.0,0.0002855,2]
[343276263,1732537859785,-500.0,0.0002855,2]
[343276265,1732537859794,-500.0,0.0002855,2]
[343276267,1732537859803,-500.0,0.0002855,2]
[343276269,1732537859813,-500.0,0.0002855,2]
[343276271,1732537859825,-500.0,0.0002855,2]
[343276274,1732537859834,-500.0,0.0002855,2]
[343276276,1732537859844,-500.0,0.0002855,2]
[343276277,1732537859853,-500.0,0.0002855,2]
[343276280,1732537859862,-500.0,0.0002855,2]
[343276282,1732537859874,-500.0,0.0002855,2]
[343276284,1732537859885,-500.0,0.0002855,2]
[343276286,1732537859894,-500.0,0.0002855,2]
[343276288,1732537859904,-506.61293068,0.0002855,2]
[343276290,1732537859913,-759.69,0.0002855,2]
[343276292,1732537859923,-500.0,0.0002855,2]
[343276294,1732537859934,-500.0,0.0002855,2]
[343276296,1732537859943,-461.92,0.0002855,2]
[343276298,1732537859953,-506.44,0.0002855,2]
[343276300,1732537859962,-3165.31,0.00028561,2]
[343276302,1732537859972,-769.4,0.00028561,2]
[343276304,1732537859981,-2256.66,0.00028561,2]
[343276306,1732537859990,-500.0,0.00028561,2]
[343276308,1732537859999,-500.0,0.00028561,2]
[343276310,1732537860009,-13350.69,0.00028564,2]
[343276312,1732537860019,-500.0,0.00028564,2]
[343276314,1732537860028,-549.13,0.00028564,2]
[343276316,1732537860038,-500.0,0.00028564,2]
[343276318,1732537860047,-601.52,0.00028564,2]
[343276320,1732537860057,-500.0,0.00028564,2]
[343276322,1732537860066,-500.0,0.00028564,2]
[343276324,1732537860076,-349.94,0.00028564,2]
[343276326,1732537860085,-500.0,0.00028564,2]
[343276328,1732537860094,-500.0,0.00028564,2]
[343276330,1732537860104,-1119.37,0.00028564,2]
[343276332,1732537860114,-600.0,0.00028667,2]
[343276334,1732537860123,-500.0,0.00028684,2]
[343276336,1732537860135,-500.88,0.00028684,2]
[343276338,1732537860144,-373.29,0.00028684,2]
[343276340,1732537860153,-500.0,0.00028684,2]
[343276342,1732537860163,-500.0,0.00028684,2]
[343276344,1732537860173,-500.0,0.00028684,2]
[343276346,1732537860182,-500.0,0.00028684,2]
[343276348,1732537860192,-500.0,0.00028684,2]
[343276350,1732537860201,-500.0,0.00028684,2]
[343276352,1732537860211,-500.0,0.00028684,2]
[343276354,1732537860220,-500.0,0.00028684,2]
[343276356,1732537860229,-184.8,0.00028684,2]
[343276358,1732537860239,-500.0,0.00028684,2]
[343276360,1732537860249,-500.0,0.00028684,2]
[343276362,1732537860258,-500.0,0.00028684,2]
[343276364,1732537860267,-500.0,0.00028684,2]
[343276366,1732537860277,-500.0,0.00028684,2]
[343276368,1732537860287,-584.54,0.00028684,2]
[343276370,1732537860297,-1265.07,0.00028684,2]
[343276372,1732537860306,-500.0,0.00028684,2]
[343276374,1732537860316,-500.0,0.00028684,2]
[343276376,1732537860325,-500.0,0.00028684,2]
[343276378,1732537860334,-706.06,0.00028684,2]
[343276380,1732537860344,-500.0,0.00028684,2]
[343276382,1732537860354,-161.742858,0.00028756,2]
[343276384,1732537860363,-500.0,0.00028823,2]
[343276386,1732537860373,-500.0,0.00028823,2]
[343276388,1732537860385,-500.0,0.00028823,2]
[343276390,1732537860394,-500.0,0.00028823,2]
[343276392,1732537860404,-500.0,0.00028823,2]
[343276394,1732537860415,-500.07,0.00028823,2]
[343276396,1732537860429,-500.0,0.00028823,2]
[343276398,1732537860439,-500.0,0.00028823,2]
[343276400,1732537860449,-500.0,0.00028823,2]
[343276402,1732537860460,-500.0,0.00028823,2]
[343276405,1732537860469,-500.0,0.00028823,2]
[343276407,1732537860479,-500.0,0.00028823,2]
[343276409,1732537860489,-554.78,0.00028823,2]
[343276411,1732537860501,-500.0,0.00028823,2]
[343276413,1732537860511,-500.0,0.00028823,2]
[343276415,1732537860521,-500.0,0.00028823,2]
[343276417,1732537860531,-195.1,0.00028823,2]
[343276419,1732537860541,-560.59,0.00028823,2]
[343276421,1732537860550,-500.0,0.00028823,2]
[343276423,1732537860559,-787.36,0.00028823,2]
[343276425,1732537860568,-5700.56,0.00028823,2]
[343276427,1732537860578,-500.0,0.00028823,2]
[343276429,1732537860588,-500.0,0.00028823,2]
[343276431,1732537860597,-1431.61,0.00028823,2]
[343276433,1732537860606,-500.0,0.00028823,2]
[343276435,1732537860615,-500.0,0.00028823,2]
[343276437,1732537860624,-500.0,0.00028823,2]
[343276439,1732537860640,-500.0,0.00028823,2]
[343276441,1732537860650,-500.0,0.00028823,2]
[343276443,1732537860660,-500.0,0.00028823,2]
[343276445,1732537860669,-500.0,0.00028823,2]
[343276447,1732537860679,-500.0,0.00028823,2]
[343276449,1732537860688,-500.0,0.00028823,2]
[343276451,1732537860698,-500.0,0.00028824,2]
[343276453,1732537860707,-525.98273428,0.00028824,2]
[343276455,1732537860716,-500.0,0.00028824,2]
[343276457,1732537860726,-500.0,0.00028824,2]
[343276459,1732537860736,-500.0,0.00028824,2]
[343276461,1732537860746,-500.0,0.00028824,2]
[343276463,1732537860756,-500.0,0.00028824,2]
[343276465,1732537860765,-500.0,0.00028824,2]
[343276467,1732537860775,-500.0,0.00028824,2]
[343276469,1732537860785,-500.0,0.00028824,2]
[343276471,1732537860794,-500.0,0.00028824,2]
[343276473,1732537860804,-759.69,0.00028824,2]
[343276475,1732537860813,-506.44,0.00028824,2]
[343276477,1732537860823,-3165.31,0.00028835,2]
[343276479,1732537860833,-769.4,0.00028835,2]
[343276481,1732537860843,-2256.66,0.00028835,2]
[343276483,1732537860852,-500.0,0.00028835,2]
[343276485,1732537860862,-500.0,0.00028835,2]
[343276487,1732537860871,-13350.69,0.00028838,2]
[343276489,1732537860883,-371.28,0.00028838,2]
[343276491,1732537860893,-549.13,0.00028838,2]
[343276493,1732537860903,-500.0,0.00028838,2]
[343276495,1732537860913,-601.52,0.00028838,2]
[343276497,1732537860923,-500.0,0.00028838,2]
[343276499,1732537860933,-500.0,0.00028838,2]
[343276501,1732537860943,-500.0,0.00028838,2]
[343276503,1732537860952,-455.46,0.00028838,2]
[343276505,1732537860962,-1119.37,0.00028838,2]
[343276514,1732537861039,-3376.02603305,0.00028872,2]
[343276516,1732537861052,-151.0,0.00028877,7]
[343276518,1732537861062,-4010.0,0.000289,2]
[343276520,1732537861072,-151.0,0.00028911,2]
[343276522,1732537861082,-250000.0,0.00028941,2]
[343276524,1732537861092,-500.0,0.00028958,2]
[343276526,1732537861102,-500.0,0.00028958,2]
[343276528,1732537861111,-313.16,0.00028958,2]
[343276530,1732537861121,-500.0,0.00028958,2]
[343276532,1732537861134,-500.0,0.00028958,2]
[343276534,1732537861144,-500.0,0.00028958,2]
[343276536,1732537861153,-500.0,0.00028958,2]
[343276538,1732537861163,-500.0,0.00028958,2]
[343276540,1732537861173,-511.69,0.00028958,2]
[343276542,1732537861183,-500.0,0.00028958,2]
[343276544,1732537861193,-500.0,0.00028958,2]
[343276546,1732537861203,-500.0,0.00028958,2]
[343276548,1732537861213,-500.0,0.00028958,2]
[343276550,1732537861223,-380.28,0.00028958,2]
[343276552,1732537861233,-584.54,0.00028958,2]
[343276554,1732537861242,-1265.07,0.00028958,2]
[343276556,1732537861253,-261.75,0.00028958,2]
[343276558,1732537861263,-500.0,0.00028958,2]
[343276560,1732537861274,-500.0,0.00028958,2]
[343276563,1732537861285,-706.06,0.00028958,2]
[343276565,1732537861295,-500.0,0.00028958,2]
[343276567,1732537861305,-602.18249524,0.00028959,2]
[343276569,1732537861314,-200.0,0.00029,120]
[343276571,1732537861324,-161.742858,0.00029094,2]
[343276573,1732537861335,-500.0,0.00029097,2]
[343276575,1732537861345,-500.0,0.00029097,2]
[343276577,1732537861355,-500.0,0.00029097,2]
[343276579,1732537861366,-500.0,0.00029097,2]
[343276581,1732537861380,-556.72,0.00029097,2]
[343276583,1732537861390,-500.07,0.00029097,2]
[343276585,1732537861401,-500.0,0.00029097,2]
[343276587,1732537861411,-500.0,0.00029097,2]
[343276589,1732537861425,-164.12,0.00029097,2]
[343276591,1732537861436,-500.0,0.00029097,2]
[343276593,1732537861446,-259.88,0.00029097,2]
[343276595,1732537861457,-568.2,0.00029097,2]
[343276597,1732537861470,-554.78,0.00029097,2]
[343276599,1732537861481,-500.0,0.00029097,2]
[343276602,1732537861493,-500.0,0.00029097,2]
[343276604,1732537861504,-500.0,0.00029097,2]
[343276605,1732537861514,-560.59,0.00029097,2]
[343276607,1732537861524,-500.0,0.00029097,2]
[343276609,1732537861533,-787.36,0.00029097,2]
[343276611,1732537861544,-5700.56,0.00029097,2]
[343276614,1732537861554,-500.0,0.00029097,2]
[343276615,1732537861564,-500.0,0.00029097,2]
[343276618,1732537861573,-1431.61,0.00029097,2]
[343276620,1732537861583,-500.0,0.00029097,2]
[343276621,1732537861593,-500.0,0.00029097,2]
[343276624,1732537861602,-500.0,0.00029097,2]
[343276626,1732537861612,-500.0,0.00029097,2]
[343276628,1732537861622,-500.0,0.00029097,2]
[343276630,1732537861636,-500.0,0.00029097,2]
[343276632,1732537861646,-500.0,0.00029097,2]
[343276634,1732537861656,-500.0,0.00029097,2]
[343276636,1732537861666,-500.0,0.00029097,2]
[343276638,1732537861675,-500.0,0.00029098,2]
[343276640,1732537861685,-500.0,0.00029098,2]
[343276642,1732537861699,-500.0,0.00029098,2]
[343276644,1732537861709,-500.0,0.00029098,2]
[343276646,1732537861719,-500.0,0.00029098,2]
[343276648,1732537861729,-500.0,0.00029098,2]
[343276650,1732537861738,-214.24,0.00029098,2]
[343276652,1732537861750,-500.0,0.00029098,2]
[343276654,1732537861760,-500.0,0.00029098,2]
[343276656,1732537861770,-500.0,0.00029098,2]
[343276658,1732537861782,-759.69,0.00029098,2]
[343276661,1732537861792,-506.44,0.00029098,2]
[343276663,1732537861803,-14391.28783143,0.000291,2]
[343276665,1732537861816,-14391.2878314,0.000291,2]
[343276667,1732537861828,-14391.2878314,0.000291,2]
[343276669,1732537861838,-14391.2878314,0.000291,2]
[343276671,1732537861850,-3165.31,0.00029109,2]
[343276672,1732537861860,-769.4,0.00029109,2]
[343276674,1732537861870,-2256.66,0.00029109,2]
[343276676,1732537861883,-500.0,0.00029109,2]
[343276678,1732537861893,-500.0,0.00029109,2]
[343276680,1732537861903,-13350.69,0.00029112,2]
[343276682,1732537861913,-549.13,0.00029112,2]
[343276684,1732537861924,-357.7,0.00029112,2]
[343276686,1732537861933,-601.52,0.00029112,2]
[343276688,1732537861942,-500.0,0.00029112,2]
[343276690,1732537861951,-500.0,0.00029112,2]
[343276692,1732537861961,-500.0,0.00029112,2]
[343276694,1732537861970,-1119.37,0.00029112,2]
[343276696,1732537861979,-108553.95078295,0.00029127,2]
[343276698,1732537861988,-37897.30631351,0.000292,2]
[343276700,1732537861998,-151.0,0.00029216,7]
[343276702,1732537862007,-151.0,0.00029216,7]
[343276705,1732537862018,-151.0,0.00029216,7]
[343276707,1732537862027,-151.0,0.00029216,7]
[343276709,1732537862036,-151.0,0.00029216,7]
[343276710,1732537862046,-151.0,0.00029216,7]
[343276712,1732537862056,-190.752058,0.00029216,7]
[343276714,1732537862065,-500.0,0.00029232,2]
[343276716,1732537862075,-500.0,0.00029232,2]
[343276718,1732537862085,-500.0,0.00029232,2]
[343276720,1732537862094,-500.0,0.00029232,2]
[343276722,1732537862103,-408.47,0.00029232,2]
[343276724,1732537862112,-500.0,0.00029232,2]
[343276726,1732537862119,-500.0,0.00029232,2]
[343276728,1732537862130,-596.3,0.00029232,2]
[343276730,1732537862138,-500.0,0.00029232,2]
[343276732,1732537862147,-500.0,0.00029232,2]
[343276734,1732537862156,-547.6,0.00029232,2]
[343276736,1732537862166,-584.54,0.00029232,2]
[343276738,1732537862175,-1265.07,0.00029232,2]
[343276740,1732537862186,-500.0,0.00029232,2]
[343276742,1732537862197,-500.0,0.00029232,2]
[343276744,1732537862208,-706.06,0.00029232,2]
[343276746,1732537862218,-500.0,0.00029232,2]
[343276748,1732537862228,-170.78253416,0.00029238,2]
[343276750,1732537862238,-2767.51240355,0.00029238,2]
[343276752,1732537862249,-500.0,0.00029241,10]
[343276754,1732537862259,-500.0,0.00029241,10]
[343276756,1732537862269,-500.0,0.00029241,10]
[343276758,1732537862279,-500.0,0.00029241,10]
[343276760,1732537862289,-500.0,0.00029241,10]
[343276762,1732537862299,-151.83351094,0.00029241,10]
[343276764,1732537862308,-151.0,0.00029251,15]
[343276766,1732537862318,-151.0,0.00029279,7]
[343276768,1732537862328,-20939.21,0.000293,2]
[343276770,1732537862337,-272.54831,0.00029319,7]
[343276772,1732537862347,-272.54831,0.00029319,7]
[343276774,1732537862357,-272.54831,0.00029319,7]
[343276776,1732537862366,-272.54831,0.00029319,7]
[343276778,1732537862376,-272.54831,0.00029319,7]
[343276780,1732537862387,-272.54831,0.00029319,7]
[343276782,1732537862398,-272.54831,0.00029319,7]
[343276784,1732537862408,-272.54831,0.00029319,7]
[343276786,1732537862422,-272.54831,0.00029319,7]
[343276788,1732537862432,-272.54831,0.00029319,7]
[343276798,1732537862510,-272.54831,0.00029319,7]
[343276800,1732537862520,-272.54831,0.00029319,7]
[343276802,1732537862530,-272.54831,0.00029319,7]
[343276804,1732537862543,-272.54831,0.00029319,7]
[343276806,1732537862557,-272.54831,0.00029319,7]
[343276808,1732537862568,-272.54831,0.00029319,7]
[343276810,1732537862578,-272.54831,0.00029319,7]
[343276812,1732537862590,-272.54831,0.00029319,7]
[343276814,1732537862600,-272.54831,0.00029319,7]
[343276816,1732537862610,-272.548306,0.00029319,7]
[343276818,1732537862619,-151.0,0.00029319,7]
[343276820,1732537862631,-151.0,0.00029319,7]
[343276822,1732537862641,-151.0,0.00029319,7]
[343276824,1732537862652,-151.0,0.00029319,7]
[343276825,1732537862662,-151.0,0.00029319,7]
[343276827,1732537862673,-151.0,0.00029319,7]
[343276829,1732537862683,-151.0,0.00029319,7]
[343276831,1732537862693,-151.0,0.00029319,7]
[343276833,1732537862703,-151.0,0.00029319,7]
[343276835,1732537862712,-151.0,0.00029319,7]
[343276837,1732537862724,-151.0,0.00029319,7]
[343276839,1732537862733,-151.0,0.00029319,7]
[343276841,1732537862743,-151.0,0.00029319,7]
[343276843,1732537862753,-162.369585,0.00029319,7]
[343276845,1732537862763,-151.0,0.00029319,7]
[343276847,1732537862773,-151.0,0.00029319,7]
[343276849,1732537862783,-381555.86984995,0.00029319,10]
[343276851,1732537862792,-245671.30033638,0.00029319,10]
[343276853,1732537862802,-833476.44842153,0.00029319,10]
[343276855,1732537862811,-276528.00567472,0.00029319,10]
[343276857,1732537862820,-221240.61942656,0.00029319,10]
[343276859,1732537862831,-401.10374492,0.00029319,2]
[343276861,1732537862840,-278449.78895643,0.00029319,10]
[343276863,1732537862851,-368574.76524107,0.00029319,10]
[343276874,1732537862951,-55454.85538956,0.00029319,10]
[343276876,1732537862963,-4255.60543093,0.00029319,10]
[343276878,1732537862973,-140289.53917951,0.00029319,10]
[343276880,1732537862985,-355.99983,0.00029319,10]
[343276882,1732537862997,-374.35412451,0.00029319,10]
[343276890,1732537863058,-70932.86866005,0.00029319,10]
[343276892,1732537863069,-4360.18419688,0.00029319,2]
[343276894,1732537863080,-1841.16464165,0.00029319,2]
[343276896,1732537863091,-124272.94787093,0.00029319,10]
[343276898,1732537863105,-147595.50000001,0.00029319,10]
[343276922,1732537863352,-501.83272302,0.00019989,2]
[343276924,1732537863364,-603.55,0.00025547,2]
[343276926,1732537863374,-500.0,0.0002555,2]
[343276927,1732537863388,-500.0,0.00025824,2]
[343276930,1732537863399,-500.0,0.00026098,2]
[343276932,1732537863410,-500.0,0.00026372,2]
[343276934,1732537863427,-500.0,0.00026631,2]
[343276936,1732537863438,-500.0,0.00026632,2]
[343276938,1732537863448,-500.0,0.00026632,2]
[343276940,1732537863459,-500.0,0.00026646,2]
[343276942,1732537863470,-500.0,0.00026905,2]
[343276943,1732537863481,-500.0,0.00026906,2]
[343276945,1732537863492,-500.0,0.00026906,2]
[343276948,1732537863505,-190.84,0.0002692,2]
[343276949,1732537863515,-159.6046139,0.00027179,2]
[343276951,1732537863526,-563.3758059,0.0002718,2]
[343276953,1732537863536,-500.0,0.0002718,2]
[343276956,1732537863547,-155.05946352,0.00027727,2]
[343276958,1732537863559,-4108427.61920926,0.00029319,10]
[343276960,1732537863570,-3044.7291723,0.00029319,2]
[343276962,1732537863581,-89908.49341035,0.00029319,2]
[343276964,1732537863591,-2000.0,0.00029319,2]
[343276965,1732537863603,-300.0,0.00029319,2]
[343276966,1732537863614,-799.2188149,0.00029319,2]
[343276967,1732537863626,-517.89625824,0.00029319,2]
[343276968,1732537863638,-293.02912791,0.00029319,2]
[343276969,1732537863648,-322.75807653,0.00029319,2]
[343276970,1732537863658,-1193.68086312,0.00029319,2]
[343276971,1732537863669,-51032.22504531,0.00029319,2]
[343276972,1732537863679,-4150.82341929,0.00029319,2]
[343276973,1732537863691,-10165.62179932,0.00029319,2]
[343276975,1732537863702,-6208.12633303,0.00029319,2]
[343276977,1732537863712,-155.4260194,0.00029319,2]
[343276979,1732537863723,-440.29374092,0.00029319,2]
[343276981,1732537863733,-1025.87036235,0.00029319,2]
[343276983,1732537863744,-154833.69154879,0.00029319,2]
[343276985,1732537863754,-461.88751474,0.00029319,2]
[343276987,1732537863764,-238.34712944,0.00029319,2]
[343276989,1732537863775,-186.92272028,0.00029319,2]
[343276991,1732537863785,-299.29123331,0.00029319,2]
[343276993,1732537863795,-428251.7909833,0.00029319,10]
[343276995,1732537863808,-1087.58,0.00029319,10]
[343277008,1732537863927,-500.0,0.00019989,2]
[343277010,1732537863937,-359.34330622,0.00020263,2]
[343277012,1732537863951,-140.65669378,0.00020263,2]
[343277014,1732537863962,-500.0,0.00020537,2]
[343277016,1732537863974,-500.0,0.00020811,2]
[343277018,1732537863985,-294.36,0.00026895,10]
[343277020,1732537863995,-500.0,0.00027454,2]
[343277022,1732537864007,-487.57725412,0.00027728,2]
[343277024,1732537864017,-4041.03059642,0.00029319,10]
[343277037,1732537864141,-500.0,0.00019989,2]
[343277039,1732537864151,-160.0,0.00020263,2]
[343277041,1732537864164,-340.0,0.00020263,2]
[343277043,1732537864175,-500.0,0.00020537,2]
[343277045,1732537864185,-500.0,0.00020811,2]
[343277047,1732537864197,-500.0,0.00021085,2]
[343277049,1732537864207,-500.0,0.00025545,2]
[343277051,1732537864218,-474.29101641,0.00025547,2]
[343277053,1732537864228,-196.45189082,0.00026631,2]
[343277055,1732537864238,-151.0,0.00029232,7]
[343277057,1732537864248,-151.0,0.00029319,7]
[343277059,1732537864259,-151.0,0.00029319,7]
[343277061,1732537864269,-151.0,0.00029319,7]
[343277063,1732537864280,-151.0,0.00029319,7]
[343277065,1732537864290,-1775.44613371,0.00029319,10]
[343277067,1732537864302,-499.9968081,0.00029319,10]
[343277068,1732537864318,-500.0,0.00025819,2]
[343277069,1732537864328,-1675570.7683859,0.00029319,10]
[343277070,1732537864339,-1271682.67671104,0.00029319,10]
[343277071,1732537864349,-13215.04652327,0.00029319,2]
[343277072,1732537864359,-64117.90759208,0.00029319,10]
[343277073,1732537864373,-613.95641316,0.00029319,10]
[343277074,1732537864562,-500.0,0.00026093,2]
[343277075,1732537864573,-500.0,0.00026367,2]
[343277076,1732537864584,-500.0,0.00026632,2]
[343277077,1732537864594,-500.0,0.00026632,2]
[343277078,1732537864605,-500.0,0.00026906,2]
[343277079,1732537864615,-500.0,0.00026906,2]
[343277080,1732537864625,-500.0,0.0002718,2]
[343277081,1732537864637,-500.0,0.0002718,2]
[343277082,1732537864646,-500.0,0.00027454,2]
[343277083,1732537864657,-500.0,0.00027454,2]